{"text_format":"1","workbook":"xlsx","n_sheets":1,"sheets":["Pressupost Projecte Ac"],"not_rendered":{"charts":0,"images":2,"macros":1,"external_links":0,"defined_names":6,"comments":1,"pivot_tables":0},"unopened":[],"bounds":{"document_bytes":16777216,"sheet_cells":100000,"rows_first":2000,"rows_last":500,"rows_between":2000,"halvings":0,"cell_chars":16384,"cell_head_chars":4096},"cells_cut":0,"cells_raw":0,"read":"whole","date_system":"1900"}

{"sheet":"Pressupost Projecte Ac","index":0,"n_rows":182,"n_cols":6,"rows_kept":182,"cut":false,"hidden":false,"merged":[]}
[null,null,null,null,null,"Document bàsic 3"]
[null,null,null,null,null,"Àmbit temàtic \"A\": Acompanyament i Formació"]
["Subvencions de l'Ajuntament de Barcelona per a",null,null,null,null,"Modalitat \"c\":Projectes de formació adreçats a projectes col·lectius d’emprenedoria per capacitar "]
["la promoció i reforç de l'economia social i solidària 2019",null,null,null,null,"en Economia Social i Solidària i impulsar la sostenibilitat econòmica i tècnica dels projectes "]
[null,null,null,null,null,"Cal omplir les cel·les en blanc i si escau afegir les files necessàries"]
[null,null,null,null,null,"Abans d'omplir, consultar anotacions a peu de pàgina"]
[null,null,null,null,null," "]
["DADES BÀSIQUES"]
["Nom de la persona jurídica",null,null,null,null,"  "]
["NIF de la persona jurídica"]
["Nom del projecte"]
["Import total del projecte"]
["Import imputable a la subvenció municipal"]
["% de l’import sol·licitat a la subvenció municipal a bescanviar en REC (Recurs Econòmic Ciutadà) "]
["Import de l'aportació / Cofinançament de l'entitat",{"$f":"B12-B13","v":0}]
["% de l'import sol·licitat respecte el total del projecte",{"$f":"B13/B12","v":{"$error":"#DIV/0!"}}]
["Data inici del projecte subvencionat (dd/mm/aaaa)"]
["Data fi del projecte subvencionat (dd/mm/aaaa)"]
[]
["PREVISIÓ DE DESPESES DEL PROJECTE"]
[]
["Partides","Import total del projecte","Import imputable a la subvenció municipal","Import de l'aportació / Cofinançament de l'entitat"]
["D1.  Nòmines i seguretat social IRPF (règim general o règim d’autònoms) del personal propi  vinculat al projecte ",{"$f":"SUM(DespesesProjecte[[#This Row],[Import imputable a la subvenció municipal]],DespesesProjecte[[#This Row],[Import de l''aportació / Cofinançament de l''entitat]])","v":0},{"$f":"SUM(C24:C28)","v":0},{"$f":"SUM(D24:D28)","v":0}]
[]
[]
[]
[]
[]
["D2.  Treballs realitzats per professionals i empreses externes directament vinculades al projecte",{"$f":"SUM(DespesesProjecte[[#This Row],[Import imputable a la subvenció municipal]],DespesesProjecte[[#This Row],[Import de l''aportació / Cofinançament de l''entitat]])","v":0},{"$f":"SUM(C30:C34)","v":0},{"$f":"SUM(D30:D34)","v":0}]
[]
[]
[]
[]
[]
["D3. Lloguer de bens mobles/immobles directament vinculats al projecte",{"$f":"SUM(DespesesProjecte[[#This Row],[Import imputable a la subvenció municipal]],DespesesProjecte[[#This Row],[Import de l''aportació / Cofinançament de l''entitat]])","v":0},{"$f":"SUM(C36:C40)","v":0},{"$f":"SUM(D36:D40)","v":0}]
[]
[]
[]
[]
[]
["D4. Adquisició de materials i béns consumibles íntegrament imputables al projecte",{"$f":"SUM(DespesesProjecte[[#This Row],[Import imputable a la subvenció municipal]],DespesesProjecte[[#This Row],[Import de l''aportació / Cofinançament de l''entitat]])","v":0},{"$f":"SUM(C42:C46)","v":0},{"$f":"SUM(D42:D46)","v":0}]
[]
[]
[]
[]
[]
["D5. Transport – missatgeria imputables al projecte",{"$f":"SUM(DespesesProjecte[[#This Row],[Import imputable a la subvenció municipal]],DespesesProjecte[[#This Row],[Import de l''aportació / Cofinançament de l''entitat]])","v":0},{"$f":"SUM(C48:C52)","v":0},{"$f":"SUM(D48:D52)","v":0}]
[]
[]
[]
[]
[]
["D6. Publicitat i propaganda de les activitats directament vinculades al projecte",{"$f":"SUM(DespesesProjecte[[#This Row],[Import imputable a la subvenció municipal]],DespesesProjecte[[#This Row],[Import de l''aportació / Cofinançament de l''entitat]])","v":0},{"$f":"SUM(C54:C58)","v":0},{"$f":"SUM(D54:D58)","v":0}]
[]
[]
[]
[]
[]
["D7.  Allotjament i dietes, del personal contractat i voluntaris",{"$f":"SUM(DespesesProjecte[[#This Row],[Import imputable a la subvenció municipal]],DespesesProjecte[[#This Row],[Import de l''aportació / Cofinançament de l''entitat]])","v":0},{"$f":"SUM(C60:C64)","v":0},{"$f":"SUM(D60:D64)","v":0}]
[]
[]
[]
[]
[]
["D8.  Ajuts al transport per als/les participants dels projectes en cas que sigui necessari de manera justificada",{"$f":"SUM(DespesesProjecte[[#This Row],[Import imputable a la subvenció municipal]],DespesesProjecte[[#This Row],[Import de l''aportació / Cofinançament de l''entitat]])","v":0},{"$f":"SUM(C66:C70)","v":0},{"$f":"SUM(D66:D70)","v":0}]
[]
[]
[]
[]
[]
["D9.  Viatges i desplaçaments imputables a les activitats del projecte",{"$f":"SUM(DespesesProjecte[[#This Row],[Import imputable a la subvenció municipal]],DespesesProjecte[[#This Row],[Import de l''aportació / Cofinançament de l''entitat]])","v":0},{"$f":"SUM(C72:C76)","v":0},{"$f":"SUM(D72:D76)","v":0}]
[]
[]
[]
[]
[]
["D10. Tributs, quan siguin abonats directament per la persona jurídica beneficiària",{"$f":"SUM(DespesesProjecte[[#This Row],[Import imputable a la subvenció municipal]],DespesesProjecte[[#This Row],[Import de l''aportació / Cofinançament de l''entitat]])","v":0},{"$f":"SUM(C78:C82)","v":0},{"$f":"SUM(D78:D82)","v":0}]
[]
[]
[]
[]
[]
["D11.  Despeses de l’informe d’auditoria, quan sigui obligatòria la seva presentació per import de la subvenció",{"$f":"SUM(DespesesProjecte[[#This Row],[Import imputable a la subvenció municipal]],DespesesProjecte[[#This Row],[Import de l''aportació / Cofinançament de l''entitat]])","v":0},{"$f":"SUM(C84:C88)","v":0},{"$f":"SUM(D84:D88)","v":0}]
[]
[]
[]
[]
[]
["D12  Altres despeses que de manera justificada i per la tipologia del projecte puguin imputar-se directament al projecte",{"$f":"SUM(DespesesProjecte[[#This Row],[Import imputable a la subvenció municipal]],DespesesProjecte[[#This Row],[Import de l''aportació / Cofinançament de l''entitat]])","v":0},{"$f":"SUM(C90:C94)","v":0},{"$f":"SUM(D90:D94)","v":0}]
[]
[]
[]
[]
[]
["D13.  Beques per a persones amb dificultats econòmiques destinatàries dels projectes ",{"$f":"SUM(DespesesProjecte[[#This Row],[Import imputable a la subvenció municipal]],DespesesProjecte[[#This Row],[Import de l''aportació / Cofinançament de l''entitat]])","v":0},{"$f":"SUM(C96:C100)","v":0},{"$f":"SUM(D96:D100)","v":0}]
[]
[]
[]
[]
[]
["TOTAL DESPESES DIRECTES (aquelles que s’identifiquen directament amb el projecte)",{"$f":"SUM(B23,B29,B35,B41,B47,B53,B59,B65,B71,B77,B83,B89,B95)","v":0},{"$f":"SUM(C23,C29,C35,C41,C47,C53,C59,C65,C71,C77,C83,C89,C95)","v":0},{"$f":"SUM(D23,D29,D35,D41,D47,D53,D59,D65,D71,D77,D83,D89,D95)","v":0}]
["I1.  Personal de suport al projecte (nòmines i seguretat social )",{"$f":"SUM(DespesesProjecte[[#This Row],[Import imputable a la subvenció municipal]],DespesesProjecte[[#This Row],[Import de l''aportació / Cofinançament de l''entitat]])","v":0},{"$f":"SUM(C103:C107)","v":0},{"$f":"SUM(D103:D107)","v":0}]
[]
[]
[]
[]
[]
["I2.  Assegurances",{"$f":"SUM(DespesesProjecte[[#This Row],[Import imputable a la subvenció municipal]],DespesesProjecte[[#This Row],[Import de l''aportació / Cofinançament de l''entitat]])","v":0},{"$f":"SUM(C109:C113)","v":0},{"$f":"SUM(D109:D113)","v":0}]
[]
[]
[]
[]
[]
["I3.  Amortització",{"$f":"SUM(DespesesProjecte[[#This Row],[Import imputable a la subvenció municipal]],DespesesProjecte[[#This Row],[Import de l''aportació / Cofinançament de l''entitat]])","v":0},{"$f":"SUM(C115:C119)","v":0},{"$f":"SUM(D115:D119)","v":0}]
[]
[]
[]
[]
[]
["I4.  Lloguer de béns immobles.",{"$f":"SUM(DespesesProjecte[[#This Row],[Import imputable a la subvenció municipal]],DespesesProjecte[[#This Row],[Import de l''aportació / Cofinançament de l''entitat]])","v":0},{"$f":"SUM(C121:C125)","v":0},{"$f":"SUM(D121:D125)","v":0}]
[]
[]
[]
[]
[]
["I5.  Adquisició de materials i béns consumibles parcialment imputables al projecte.",{"$f":"SUM(DespesesProjecte[[#This Row],[Import imputable a la subvenció municipal]],DespesesProjecte[[#This Row],[Import de l''aportació / Cofinançament de l''entitat]])","v":0},{"$f":"SUM(C127:C131)","v":0},{"$f":"SUM(D127:D131)","v":0}]
[]
[]
[]
[]
[]
["I6.  Manteniment d’edificis i/o instal•lacions.",{"$f":"SUM(DespesesProjecte[[#This Row],[Import imputable a la subvenció municipal]],DespesesProjecte[[#This Row],[Import de l''aportació / Cofinançament de l''entitat]])","v":0},{"$f":"SUM(C133:C137)","v":0},{"$f":"SUM(D133:D137)","v":0}]
[]
[]
[]
[]
[]
["I7.  Comunicacions (telèfon, correus, connexió a internet)",{"$f":"SUM(DespesesProjecte[[#This Row],[Import imputable a la subvenció municipal]],DespesesProjecte[[#This Row],[Import de l''aportació / Cofinançament de l''entitat]])","v":0},{"$f":"SUM(C139:C143)","v":0},{"$f":"SUM(D139:D143)","v":0}]
[]
[]
[]
[]
[]
["I8.  Despeses financeres",{"$f":"SUM(DespesesProjecte[[#This Row],[Import imputable a la subvenció municipal]],DespesesProjecte[[#This Row],[Import de l''aportació / Cofinançament de l''entitat]])","v":0},{"$f":"SUM(C145:C149)","v":0},{"$f":"SUM(D145:D149)","v":0}]
[]
[]
[]
[]
[]
["I9.  Subministraments ",{"$f":"SUM(DespesesProjecte[[#This Row],[Import imputable a la subvenció municipal]],DespesesProjecte[[#This Row],[Import de l''aportació / Cofinançament de l''entitat]])","v":0},{"$f":"SUM(C151:C155)","v":0},{"$f":"SUM(D151:D155)","v":0}]
[]
[]
[]
[]
[]
["I10.  Treball realitzat per altres empreses, parcialment imputables al projecte (neteja, seguretat...)",{"$f":"SUM(DespesesProjecte[[#This Row],[Import imputable a la subvenció municipal]],DespesesProjecte[[#This Row],[Import de l''aportació / Cofinançament de l''entitat]])","v":0},{"$f":"SUM(C157:C161)","v":0},{"$f":"SUM(D157:D161)","v":0}]
[]
[]
[]
[]
[]
["TOTAL DESPESES INDIRECTES (es podran assignar al projecte fent sevir un percentatge d’assignació) - Màxim 10% de l’import imputable a la subvenció municipal",{"$f":"SUM(B102,B108,B114,B120,B126,B132,B138,B144,B150,B156)","v":0},{"$f":"SUM(C102,C108,C114,C120,C126,C132,C138,C144,C150,C156)","v":0},{"$f":"SUM(D102,D108,D114,D120,D126,D132,D138,D144,D150,D156)","v":0}]
["TOTAL DE DESPESES PREVISTES",{"$f":"SUM(B101,B162)","v":0},{"$f":"SUM(C101,C162)","v":0},{"$f":"SUM(D101,D162)","v":0}]
[]
[]
["1.  La quantia de la subvenció atorgada no superarà el 80% de la despesa total del projecte a subvencionar. "]
["2.  L'import màxim de subvenció per a la modalitat \"c\" de l’àmbit temàtic d’Acompanyament i Formació (Ac) és 10.000€."]
["3.  En el cas que la sol·licitud presentada sobrepassi l’import màxim, es considerarà com a import sol·licitat el màxim de l'establert a la convocatòria."]
["4.  Les despeses indirectes imputades al projecte detallades, no podran superar el 10% de l’import de la subvenció."]
["5.  Les despeses de personal propi assignat/da al projecte hauran d’acreditar-se com a despesa directa i efectivament realitzada al projecte"]
["      mantenint una relació directa amb les hores de formació degudament justificades."]
["6.  Seran subvencionables en aquesta modalitat les beques per a persones amb dificultats econòmiques destinatàries dels projectes,"]
["sempre que s’aporti en el moment de la justificació document de transferència bancària que demostri el cobrament per part de la persona destinatària."]
["7.  El caràcter subvencionable de la despesa d'amortització estarà subjecte a les condicions següents:"]
["    - Que les subvencions no hagin contribuït a la compra dels béns."]
["      - Que l'amortització es calculi de conformitat amb les normes de comptabilitat generalment acceptades."]
["      - Que el cost es refereixi al període subvencionable."]
["8.  En cap cas es consideraran despeses subvencionables:"]
["     - Els impostos indirectes quan siguin susceptibles de recuperació o compensació, ni els impostos sobre la renda."]
["     - Les despeses d'inversió, incloses les adquisicions de béns mobles."]
["     - Les despeses realitzades amb data anterior a l'inici del projecte i data posterior a la finalització del projecte."]
["     - Altres despeses que s'indiquin a la convocatòria."]